bitfinex/quotes_ETHUSD_20250807
["timestamp","ask_amount","ask_price","bid_price","bid_amount"]
[1754585703410,4.336,3817.4,3817.3,0.9323]
[1754585703709,4.336,3817.4,3817.3,4.04097516]
[1754585703922,6.296,3818.5,3817.8,2.61930955]
[1754585704120,6.296,3818.5,3817.8,2.75050955]
[1754585704121,0.37234573,3818.4,3817.8,2.75050955]
[1754585704333,4.335,3818.0,3817.8,3.68280955]
[1754585704508,6.296,3818.5,3817.8,4.31564911]
[1754585704705,4.335,3818.1,3817.8,4.3418422]
[1754585704993,6.296,3818.5,3817.8,7.31564911]
[1754585705292,1e-08,3817.9,3817.8,7.31564911]
[1754585705888,6.793,3820.0,3819.8,2.61793811]
[1754585705889,0.24119006,3819.9,3819.8,2.61793811]
[1754585706056,0.24119006,3819.9,3818.8,2.61856485]
[1754585706057,0.24119006,3819.9,3819.1,0.9323]
[1754585706262,0.24119006,3819.9,3819.8,2.61793811]
[1754585706473,0.24119006,3819.9,3819.2,0.9323]
[1754585706776,0.24119006,3819.9,3819.5,2.61809083]
[1754585706961,0.24119006,3819.9,3819.6,2.61806339]
[1754585707157,0.24119006,3819.9,3819.4,2.61816329]
[1754585707357,2.61795633,3819.8,3819.0,0.4291]
[1754585707585,2.61795633,3819.8,3818.8,3.12182195]
[1754585707586,0.55,3819.8,3818.9,2.61850376]
[1754585707750,0.5255,3819.9,3818.8,3.12180878]
[1754585708098,2.61818915,3819.5,3818.7,2.6186696]
[1754585708295,2.61818915,3819.5,3818.4,0.5032]
[1754585708296,0.55,3819.3,3818.4,0.5032]
[1754585708461,2.61840435,3819.2,3818.1,3.55133841]
[1754585708647,2.61842173,3819.1,3818.3,2.61891562]
[1754585708851,2.61861194,3818.9,3818.1,0.9323]
[1754585709141,2.61841795,3819.1,3818.1,0.9323]
[1754585709142,4.332,3818.8,3818.3,2.61896358]
[1754585709347,4.331,3818.7,3817.8,2.61930955]
[1754585709673,3.16890489,3818.4,3817.6,2.61943016]
[1754585709964,2.61890182,3818.4,3817.7,2.61935887]
[1754585710169,0.55,3818.5,3817.8,2.61928848]
[1754585710693,4.331,3818.4,3818.0,2.61911855]
[1754585710895,4.331,3818.4,3817.8,2.61929467]
[1754585711049,4.331,3818.4,3818.1,0.9323]
[1754585711250,4.331,3818.4,3818.2,2.61902946]
[1754585711464,4.33,3818.4,3818.3,0.9323]
[1754585711883,4.33,3818.4,3817.9,0.5032]
[1754585712189,4.33,3818.4,3818.0,0.9323]
[1754585712606,4.33,3818.4,3818.1,2.61904456]
[1754585712807,4.33,3818.4,3818.0,3.55146477]
[1754585713008,0.5255,3819.2,3818.3,2.61890365]
[1754585713235,0.5255,3819.2,3818.3,0.5032]
[1754585713236,0.55,3819.2,3818.3,0.5032]
[1754585713435,0.55,3818.8,3818.0,0.4291]
[1754585713737,0.55,3818.8,3818.1,2.61905635]
[1754585713903,0.55,3818.8,3818.3,2.6189402]
[1754585714108,0.002,3819.5,3818.4,0.9323]
[1754585714304,0.8037277,3818.0,3817.9,2.61924094]
[1754585714806,3.002,3819.5,3819.1,2.61839061]
[1754585715007,4.56917299,3819.4,3817.9,4.328]
[1754585715230,4.56917299,3819.4,3818.8,2.61857253]
[1754585715231,0.24116856,3819.3,3818.8,2.61857253]
[1754585715512,0.24116856,3819.3,3818.5,2.61877289]
[1754585715513,3.5255,3819.2,3818.7,2.61866198]
[1754585715714,0.5255,3819.1,3818.9,0.1312]
[1754585716050,3.5255,3819.2,3818.9,0.1312]
[1754585716517,3.55,3819.3,3818.9,0.1312]
[1754585717145,3.14565782,3819.5,3819.2,0.1312]
[1754585717146,3.002,3819.5,3819.2,0.1312]
[1754585717446,3.002,3819.5,3819.3,3.04738083]
[1754585717447,0.24120678,3819.4,3819.3,3.04738083]
[1754585717650,4.57020678,3819.5,3819.3,3.55058083]
[1754585717810,4.329,3819.5,3819.3,3.68178083]
[1754585718136,4.329,3819.5,3819.3,0.1312]
[1754585718340,4.329,3819.5,3819.3,2.74947376]
[1754585718636,4.329,3819.5,3819.3,0.1312]
[1754585718836,0.002,3819.5,3819.4,2.61821228]
[1754585719037,4.328,3819.5,3819.4,2.61821228]
[1754585719246,4.328,3819.5,3819.4,3.55051228]
[1754585719540,4.328,3819.5,3819.4,4.18051807]
[1754585719541,0.002,3819.5,3819.4,4.18051807]
[1754585719838,0.002,3819.5,3819.4,4.31171807]
[1754585720926,2.86702624,3820.5,3819.4,4.31171807]
[1754585720927,0.2495,3820.5,3819.5,2.61810771]
[1754585721111,0.2495,3820.5,3820.4,2.61752696]
[1754585721311,0.2495,3820.5,3820.4,3.54982696]
[1754585721525,0.2495,3820.5,3820.4,3.68102696]
[1754585721854,1e-08,3820.5,3820.4,6.68102696]
[1754585722031,1e-08,3820.5,3820.4,7.48164906]
[1754585722233,0.24113864,3822.1,3820.4,4.8641221]
[1754585722418,0.24113864,3822.0,3820.6,3.0]
[1754585722618,0.5255,3822.3,3821.8,2.6165681]
[1754585722619,0.24101512,3821.9,3821.8,2.6165681]
[1754585723008,4.324,3822.3,3822.1,2.61636273]
[1754585723009,0.24101512,3822.2,3822.1,2.61636273]
[1754585723204,0.24101512,3822.2,3822.1,2.74756273]
[1754585723609,0.24101512,3822.5,3822.4,2.61615738]
[1754585723809,0.24101512,3822.5,3822.1,2.74751514]
[1754585724010,0.24101512,3822.5,3822.3,2.6162253]
[1754585724248,4.322,3822.6,3822.4,0.1312]
[1754585724453,0.24101512,3822.5,3822.4,0.1312]
[1754585724834,2.61622084,3822.4,3822.3,0.1312]
[1754585725041,2.61622084,3822.4,3822.1,0.1312]
[1754585725042,0.76651512,3822.4,3822.1,0.1312]
[1754585725353,0.5255,3822.4,3822.1,0.1312]
[1754585725518,2.61629428,3822.2,3822.1,0.1312]
[1754585725718,0.5255,3822.2,3821.9,0.1312]
[1754585726057,0.5255,3822.1,3821.9,0.1312]
[1754585726240,6.93743118,3822.0,3821.9,0.1312]
[1754585726442,6.93743118,3822.0,3820.5,2.61741172]
[1754585726443,5.2766,3822.0,3820.5,2.61741172]
[1754585726648,2.61691047,3821.3,3821.2,0.1312]
[1754585726828,7.48791047,3821.3,3821.2,0.1312]
[1754585727157,8.44351047,3821.3,3821.2,0.1312]
[1754585727450,0.55,3821.0,3820.4,2.6175085]
[1754585727677,0.6567,3821.3,3820.7,0.1312]
[1754585727885,0.55,3820.8,3820.7,0.1312]
[1754585728074,0.55,3820.8,3818.3,10.92982594]
[1754585728075,1.55961566,3820.8,3820.3,0.1312]
[1754585728238,2.61734241,3820.7,3820.3,0.1312]
[1754585728439,4.35171737,3820.6,3820.3,0.1312]
[1754585728648,4.35171737,3820.6,3819.3,3.4445]
[1754585728649,3.16760842,3820.3,3819.3,2.61822548]
[1754585728870,0.55,3820.1,3819.8,0.1312]
[1754585729043,0.55,3820.3,3819.6,0.1312]
[1754585729044,6.93682128,3820.0,3819.6,0.1312]
[1754585729246,1.064,3819.9,3819.6,0.1312]
[1754585729475,0.55,3819.9,3819.5,0.1312]
[1754585729676,0.514,3820.5,3819.6,0.5308]
[1754585729853,4.318,3820.4,3819.9,2.61786957]
[1754585730050,4.318,3820.4,3819.2,2.61830369]
[1754585730051,4.318,3820.4,3820.0,0.9753]
[1754585730264,3.55,3820.9,3820.3,2.74879219]
[1754585730265,7.868,3820.9,3820.3,2.74879219]
[1754585730578,0.1312,3821.0,3820.3,2.74878635]
[1754585730751,0.1312,3821.0,3820.0,0.9753]
[1754585730752,4.318,3820.8,3820.6,0.1312]
[1754585730956,4.318,3820.8,3820.6,2.74858816]
[1754585731293,4.318,3820.8,3820.6,0.1312]
[1754585731451,4.318,3821.3,3820.6,0.1312]
[1754585731651,3.1312,3821.5,3820.6,0.1312]
[1754585731840,3.16695537,3821.3,3820.9,0.1312]
[1754585732042,3.16695537,3821.3,3819.8,2.61793811]
[1754585732043,0.03271223,3821.2,3819.8,2.61793811]
[1754585732251,0.55,3820.8,3820.2,0.1312]
[1754585732443,0.55,3820.6,3820.2,0.1312]
[1754585732975,2.61759547,3820.3,3820.2,0.1312]
[1754585733146,3.59437833,3820.5,3820.2,0.1312]
[1754585733147,0.55,3820.4,3820.2,0.1312]
[1754585733348,0.55,3820.4,3819.9,2.61785889]
[1754585733542,0.55,3820.4,3820.1,0.1312]
[1754585733749,0.55,3820.6,3819.4,0.5308]
[1754585733949,2.61672173,3821.6,3819.5,0.4445]
[1754585733950,4.317,3820.5,3819.5,0.4445]
[1754585734150,4.317,3820.5,3820.3,2.61752716]
[1754585734573,4.317,3820.5,3820.4,2.61752696]
[1754585735402,4.317,3820.5,3820.0,0.9753]
[1754585735604,4.317,3820.5,3820.4,2.61752696]
[1754585735753,4.317,3820.5,3820.4,3.59282696]
[1754585736182,4.317,3820.5,3820.4,2.61752696]
[1754585737394,4.831,3820.5,3819.9,2.6178114]
[1754585737560,0.55,3820.4,3819.2,3.0]
[1754585737896,0.55,3820.4,3818.5,4.27]
[1754585737897,0.55,3820.4,3819.1,6.59366968]
[1754585738305,0.55,3820.4,3819.1,0.4445]
[1754585738486,0.55,3820.0,3819.2,2.61829912]
[1754585738807,0.55,3820.0,3818.7,0.9753]
[1754585738808,4.314,3819.9,3819.3,2.61826023]
[1754585738992,2.61795727,3819.8,3819.1,2.61837316]
[1754585739295,4.314,3819.9,3819.2,2.61833412]
[1754585739296,6.93191432,3819.9,3819.2,2.61833412]
[1754585739512,4.314,3819.9,3819.4,2.61814884]
[1754585739798,4.314,3819.9,3818.7,0.9753]
[1754585739799,0.55,3819.7,3818.7,0.9753]
[1754585740292,0.55,3819.7,3819.2,2.61833738]
[1754585740678,0.55,3819.7,3819.3,2.61827861]
[1754585740992,0.514,3819.8,3818.7,1.3347158]
[1754585740993,4.313,3819.8,3818.7,0.3594158]
[1754585741193,4.313,3819.8,3819.5,2.6181419]
[1754585741396,4.313,3819.8,3819.5,2.61814373]
[1754585741580,4.313,3819.8,3819.4,3.06270178]
[1754585741782,4.313,3819.8,3819.4,0.4445]
[1754585741994,4.313,3819.8,3819.7,2.61800664]
[1754585742163,4.313,3819.8,3819.4,0.4445]
[1754585742358,4.313,3819.8,3818.7,0.3594158]
[1754585742601,0.514,3819.7,3819.1,2.61839876]
[1754585742799,2.61812997,3819.6,3818.7,2.61869222]
[1754585743036,1.064,3819.7,3819.1,2.61836071]
[1754585743337,1.064,3819.7,3819.3,2.61824874]
[1754585743519,4.313,3819.8,3819.5,2.61807875]
[1754585743848,4.313,3819.8,3819.5,0.1312]
[1754585744214,0.514,3819.7,3819.5,0.1312]
[1754585744403,4.313,3819.8,3819.5,0.1312]
[1754585744734,14.5,3819.7,3819.5,0.1312]
[1754585746200,15.014,3819.7,3819.5,0.1312]
[1754585746399,4.313,3819.8,3819.5,0.1312]
[1754585746636,4.313,3819.8,3819.7,0.1312]
[1754585746831,4.313,3819.8,3819.5,0.1312]
[1754585747037,14.5,3819.7,3819.5,0.1312]
[1754585747399,14.5,3819.7,3818.7,0.5308]
[1754585747400,0.514,3819.6,3818.7,0.5308]
[1754585747648,0.514,3819.6,3819.3,0.1312]
[1754585748010,14.5,3819.5,3819.3,0.1312]
[1754585748209,4.31,3819.4,3819.3,0.1312]
[1754585748635,4.31,3819.4,3819.3,2.74948083]
[1754585749027,4.31,3819.4,3819.3,0.1312]
[1754585749648,4.31,3819.4,3819.3,2.74948083]
[1754585751055,0.1312,3819.9,3819.4,2.61821184]
[1754585751256,0.1312,3819.9,3819.6,2.61807131]
[1754585751257,4.309,3819.8,3819.6,2.61807131]
[1754585751459,4.309,3819.8,3819.5,2.61811781]
[1754585751636,4.309,3819.8,3819.4,0.4445]
[1754585751838,0.514,3819.7,3819.5,0.1312]
[1754585752373,4.309,3819.8,3819.5,0.1312]
[1754585752556,15.014,3819.7,3819.5,0.1312]
[1754585752956,14.5,3819.7,3819.5,0.1312]
[1754585753157,0.514,3819.6,3819.5,0.1312]
[1754585753337,0.514,3819.6,3819.3,0.1312]
[1754585753533,4.822,3819.5,3819.3,0.1312]
[1754585753785,0.4629,3820.6,3819.7,2.61800112]
[1754585753967,0.1312,3820.1,3819.9,2.61785614]
[1754585754141,18.808,3820.5,3820.1,0.1312]
[1754585754340,19.322,3820.5,3820.1,0.1312]
[1754585754549,4.307,3820.4,3820.1,0.9753]
[1754585754750,4.307,3820.4,3820.3,0.1312]
[1754585755073,4.307,3820.4,3820.1,0.1312]
[1754585755074,4.821,3820.4,3820.1,0.1312]
[1754585755277,4.307,3820.4,3820.1,0.1312]
[1754585755455,4.307,3820.4,3820.2,2.61765691]
[1754585755641,4.307,3820.4,3820.1,0.1312]
[1754585756280,4.307,3820.4,3820.1,2.74888785]
[1754585756486,4.307,3820.4,3820.1,0.1312]
[1754585756991,4.307,3820.4,3820.1,2.7489264]
[1754585757341,4.307,3820.4,3820.1,0.1312]
[1754585757591,3.13163503,3820.3,3820.1,0.1312]
[1754585757804,0.514,3820.3,3820.0,0.1312]
[1754585757999,3.72227207,3820.2,3819.5,2.61812243]
[1754585758199,0.55,3820.0,3819.5,0.1312]
[1754585758369,15.0546,3819.9,3819.5,0.1312]
[1754585758700,7.47759565,3819.8,3819.5,0.1312]
[1754585758904,7.47759565,3819.8,3818.7,0.001]
[1754585758905,0.55,3819.7,3818.7,0.001]
[1754585759059,0.55,3819.7,3819.3,2.74948067]
[1754585759264,14.5,3819.6,3819.3,2.74948067]
[1754585759494,4.305,3819.5,3819.3,0.1312]
[1754585760300,14.5,3819.6,3819.5,2.61814373]
[1754585760510,18.805,3819.6,3819.3,1.1063]
[1754585760805,18.805,3819.6,3819.5,0.1312]
[1754585761588,18.805,3819.6,3819.1,2.61841376]
[1754585761589,19.3596,3819.6,3819.1,2.61841376]
[1754585761898,19.3596,3819.6,3819.3,0.1312]
[1754585761899,18.805,3819.6,3819.3,0.1312]
[1754585762207,2.6182586,3819.4,3819.2,0.1312]
[1754585762387,4.303,3819.3,3819.1,0.1312]
[1754585762573,0.5546,3819.2,3818.8,2.61858015]
[1754585762776,0.5546,3819.2,3819.0,0.1312]
[1754585762777,4.303,3819.1,3819.0,0.1312]
[1754585763474,4.8576,3819.1,3819.0,0.1312]
[1754585764080,4.303,3819.1,3819.0,2.74968651]
[1754585764498,4.303,3819.1,3819.0,0.1312]
[1754585764789,4.8576,3819.1,3819.0,0.1312]
[1754585765142,4.303,3819.1,3819.0,0.1312]
[1754585765478,4.8576,3819.1,3818.7,0.001]
[1754585765677,0.5546,3819.0,3818.9,0.1312]
[1754585765886,0.5546,3819.0,3818.7,2.61967466]
[1754585766222,0.5546,3819.0,3818.9,2.61855508]
[1754585766223,14.5,3819.0,3818.9,2.61855508]
[1754585766376,4.302,3819.1,3819.0,2.61848651]
[1754585766577,4.301,3819.6,3819.0,0.9751]
[1754585766780,0.6858,3820.5,3818.7,0.26296747]
[1754585766781,0.56045924,3820.4,3819.2,2.61834939]
[1754585767033,0.24323603,3820.4,3820.3,2.61759547]
[1754585767173,0.1312,3820.6,3820.4,2.61750293]
[1754585767174,0.24323603,3820.6,3820.4,2.61750293]
[1754585767380,0.24323603,3820.6,3820.5,2.74865844]
[1754585767676,4.301,3820.6,3820.5,0.5702]
[1754585767921,4.301,3820.6,3820.5,3.18765844]
[1754585768123,4.301,3820.6,3820.5,2.74865844]
[1754585768623,4.301,3820.6,3820.5,0.1312]
[1754585768789,4.301,3820.6,3820.5,2.74865844]
[1754585769217,4.301,3820.6,3820.5,0.1312]
[1754585769881,4.301,3820.6,3820.5,2.74865844]
[1754585770081,6.288,3820.9,3820.5,0.1312]
[1754585770279,4.299,3820.8,3820.7,2.61732143]
[1754585770804,1.1046,3821.5,3820.7,2.61732143]
[1754585770805,0.1312,3821.9,3820.8,2.61725293]
[1754585771125,4.299,3821.6,3820.9,0.01956571]
[1754585771329,4.299,3821.6,3820.4,3.0]
[1754585771330,0.55,3821.3,3820.4,0.9751]
[1754585771636,0.55,3821.3,3819.0,13.13985771]
[1754585771637,4.8526,3821.2,3821.0,0.1312]
[1754585771776,4.8526,3821.2,3820.8,0.1312]
[1754585771777,0.55,3821.1,3820.8,0.1312]
[1754585771978,0.5546,3821.0,3820.6,0.1312]
[1754585772217,0.1312,3821.1,3820.6,0.1312]
[1754585772520,4.298,3820.9,3820.5,2.61742945]
[1754585772765,4.298,3820.9,3820.2,0.439]
[1754585772916,4.298,3820.9,3819.0,15.75832258]
[1754585772917,3.16738593,3820.7,3820.4,0.1312]
[1754585773110,3.16738593,3820.7,3819.7,0.439]
[1754585773111,0.55,3820.5,3820.2,0.1312]
[1754585773328,0.55,3821.0,3820.3,0.439]
[1754585773657,0.55,3820.8,3820.4,2.74867468]
[1754585773966,0.5546,3820.7,3820.4,0.1312]
[1754585774120,0.55,3820.5,3819.5,2.61807738]
[1754585774459,0.55,3820.3,3819.7,2.61797607]
[1754585774658,4.296,3820.2,3819.7,2.61797607]
[1754585774843,4.296,3820.2,3819.8,2.61793322]
[1754585775025,4.296,3820.2,3819.9,2.6178136]
[1754585775358,4.296,3820.2,3819.8,2.61791452]
[1754585775561,4.296,3820.2,3819.7,2.61798946]
[1754585776049,4.8506,3820.2,3819.6,2.61802452]
[1754585776215,4.8506,3820.2,3819.7,2.61799514]
[1754585776424,0.55,3819.8,3819.5,0.001]
[1754585776641,4.295,3819.7,3819.5,0.001]
[1754585776843,4.295,3819.6,3819.5,0.001]
[1754585777042,5.3996,3819.6,3819.5,0.001]
[1754585777317,8.01767519,3819.6,3819.5,0.001]
[1754585777867,4.295,3819.6,3819.5,0.9761]
[1754585778023,0.5546,3820.5,3819.6,2.61807519]
[1754585778222,0.5546,3820.5,3819.5,0.9761]
[1754585778223,3.0,3820.3,3819.5,0.9761]
[1754585778424,2.61778373,3820.1,3819.5,0.9761]
[1754585778636,4.295,3820.0,3819.5,0.9761]
[1754585778931,4.295,3820.0,3819.6,2.61803038]
[1754585779147,4.295,3820.0,3819.6,3.05703038]
[1754585779342,18.795,3820.0,3819.6,0.439]
[1754585779547,4.295,3820.0,3819.6,0.439]
[1754585779771,4.295,3820.0,3819.7,2.61794014]
[1754585780050,4.294,3819.9,3819.8,2.6178865]
[1754585780308,0.55,3820.4,3819.8,1.54269599]
[1754585780419,14.5,3820.5,3819.8,0.9751]
[1754585780619,4.293,3820.4,3819.8,0.9751]
[1754585780820,6.287,3820.6,3819.9,0.3593139]
[1754585781035,4.293,3820.5,3819.9,3.95224035]
[1754585781239,4.293,3820.5,3819.9,1.3344139]
[1754585781453,4.293,3820.5,3820.2,2.61761487]
[1754585781653,4.8476,3820.5,3819.9,3.05686677]
[1754585782052,4.8476,3820.5,3820.0,2.61780104]
[1754585782363,6.287,3820.6,3820.0,2.61780104]
[1754585782364,0.002,3820.9,3820.5,2.61745844]
[1754585782522,4.293,3820.8,3820.7,2.61725421]
[1754585782954,4.293,3820.8,3820.6,3.59246864]
[1754585783262,0.5546,3820.7,3820.2,2.61760425]
[1754585783472,0.5546,3820.7,3820.3,2.61758563]
[1754585783622,4.293,3820.8,3820.4,2.61751866]
[1754585784259,0.002,3820.9,3819.7,2.87987235]
[1754585784260,0.002,3820.9,3820.5,0.9751]
[1754585784558,4.294,3820.9,3820.8,2.74845293]
[1754585784749,4.294,3820.9,3820.8,3.72355293]
[1754585785669,4.8486,3820.9,3820.1,0.9751]
[1754585785963,4.8486,3820.9,3820.4,2.61748289]
[1754585786267,4.8486,3820.9,3820.1,0.439]
[1754585786429,4.8486,3820.9,3820.5,2.61739872]
[1754585786622,4.8486,3820.9,3820.4,2.61751291]
[1754585786927,4.8486,3820.9,3820.4,2.61752044]
[1754585787159,4.8486,3820.9,3820.6,2.61733189]
[1754585787328,4.8486,3820.9,3820.8,2.61725293]
[1754585787329,4.291,3820.9,3820.8,2.61725293]
[1754585787524,4.291,3820.9,3820.8,3.59235293]
[1754585788398,4.291,3820.9,3820.8,2.61725293]
[1754585788600,4.291,3820.9,3820.6,0.26173319]
[1754585788801,4.291,3820.9,3820.7,2.61727381]
[1754585789105,0.002,3820.9,3820.8,3.59955293]
[1754585790366,0.002,3820.9,3820.8,6.61912395]
[1754585790564,0.002,3820.9,3820.8,6.59955293]
[1754585791173,0.002,3820.9,3820.8,3.59955293]
[1754585791374,0.002,3820.9,3820.8,4.26699082]
[1754585791595,0.002,3820.9,3820.8,4.2474198]
[1754585792119,0.002,3820.9,3820.8,4.26699082]
[1754585792293,0.002,3820.9,3820.8,4.2474198]
[1754585792493,1.0124,3822.6,3820.8,4.2474198]
[1754585792494,3.16669394,3821.7,3820.9,2.61718443]
[1754585792707,4.7943,3821.6,3820.6,2.61738993]
[1754585792894,4.7943,3821.6,3821.2,2.61691057]
[1754585793099,4.287,3821.6,3821.3,2.61691035]
[1754585793321,0.5073,3821.9,3821.1,0.01956228]
[1754585793497,4.286,3821.8,3821.6,2.61670129]
[1754585793823,4.286,3821.8,3821.3,3.59919572]
[1754585793824,4.286,3821.8,3821.7,2.61663657]
[1754585794003,4.286,3821.8,3821.7,3.13997581]
[1754585794808,4.286,3821.8,3821.7,0.52333924]
[1754585795128,4.7933,3821.8,3821.7,2.61663657]
[1754585795719,4.7933,3821.8,3821.7,2.74783657]
[1754585795916,4.286,3821.8,3821.7,2.74783657]
[1754585796645,4.7933,3821.8,3820.7,0.97632351]
[1754585796932,4.286,3821.8,3821.6,0.1312]
[1754585797294,4.286,3821.8,3820.8,0.96853235]
[1754585797295,0.5073,3821.7,3820.8,0.96853235]
[1754585797494,0.5073,3821.7,3821.5,0.1312]
[1754585797723,3.67400504,3821.6,3821.5,0.1312]
[1754585797908,3.67400504,3821.6,3821.2,0.1312]
[1754585797909,2.61678012,3821.5,3821.2,0.1312]
[1754585798102,3.12408012,3821.5,3821.2,0.1312]
[1754585798320,3.1669584,3821.3,3820.6,2.61732753]
[1754585798500,4.7903,3821.2,3820.8,0.1312]
[1754585798701,4.7903,3821.2,3820.8,2.74840403]
[1754585798905,0.5073,3821.1,3820.8,2.74840403]
[1754585799126,0.5936,3821.4,3820.8,2.74840403]
[1754585799127,0.1312,3821.4,3820.8,0.6677773]
[1754585799318,0.1312,3821.4,3820.8,0.1312]
[1754585799319,4.283,3821.0,3820.8,0.1312]
[1754585799751,4.283,3821.0,3820.9,2.61718443]
[1754585799954,4.283,3821.0,3820.9,2.74838443]
[1754585800441,4.283,3821.0,3820.9,3.28496064]
[1754585800639,4.283,3821.0,3820.9,3.72746064]
[1754585800839,4.283,3821.0,3820.9,0.66777621]
[1754585801038,4.7903,3821.0,3820.9,0.1312]
[1754585801241,4.283,3821.0,3820.9,2.74838443]
[1754585801647,4.283,3821.0,3820.9,0.1312]
[1754585801864,4.283,3821.0,3820.1,2.61770292]
[1754585801865,0.55,3820.9,3820.0,0.001]
[1754585802146,3.8057378,3820.9,3820.3,0.1312]
[1754585802447,0.55,3820.7,3820.3,0.1312]
[1754585802744,0.5073,3820.6,3820.3,2.7487862]
[1754585802948,4.281,3820.5,3820.4,2.61747929]
[1754585803160,0.5073,3821.0,3820.4,2.61747929]
[1754585803339,0.5073,3821.5,3821.0,2.6170477]
[1754585803510,0.5073,3821.5,3820.4,0.26174793]
[1754585803511,4.28,3821.4,3821.1,2.74819183]
[1754585803711,4.28,3821.4,3821.1,0.1312]
[1754585803942,0.002,3821.8,3821.1,0.1312]
[1754585803943,0.002,3821.8,3821.3,0.1312]
[1754585804105,0.002,3821.8,3821.1,0.4425]
[1754585804106,4.28,3821.7,3821.5,2.74796772]
[1754585804308,0.5073,3821.6,3820.3,0.4425]
[1754585804535,0.55,3821.5,3821.1,2.74821727]
[1754585804721,0.5073,3821.4,3821.1,0.1312]
[1754585804935,4.28,3821.3,3821.2,2.61697895]
[1754585805141,4.28,3821.3,3821.1,3.05954208]
[1754585805142,0.002,3821.8,3821.5,2.61675568]
[1754585805448,4.28,3821.7,3821.4,2.74801765]
[1754585805624,0.002,3821.8,3821.5,2.61677278]
[1754585805820,0.002,3821.8,3821.5,2.61670551]
[1754585805821,4.279,3821.7,3821.5,2.61670551]
[1754585806045,4.279,3821.7,3821.6,2.74790504]
[1754585806835,0.002,3821.8,3821.7,2.61663657]
[1754585807154,4.281,3821.8,3821.7,2.61663657]
[1754585807672,4.281,3821.8,3821.7,3.05913657]
[1754585807975,0.002,3821.8,3821.7,3.59893657]
[1754585808134,0.002,3821.8,3821.7,3.25132073]
[1754585809622,0.002,3821.8,3821.7,4.23362073]
[1754585813174,0.002,3821.8,3821.7,11.52817634]
[1754585813338,0.002,3821.8,3821.7,11.50862073]
[1754585815128,1e-08,3821.8,3821.7,11.50862073]
[1754585816236,1e-08,3821.8,3821.7,7.23362073]
[1754585816764,1e-08,3821.8,3821.7,11.50662073]
[1754585819762,1e-08,3821.8,3821.7,7.23362073]
[1754585820066,1e-08,3821.8,3821.7,11.50462073]
[1754585820265,1e-08,3821.8,3821.7,6.69382073]
[1754585820569,1e-08,3821.8,3821.7,10.52232073]
[1754585820862,1e-08,3821.8,3821.7,6.25132073]
[1754585821468,1e-08,3821.8,3821.7,7.24552073]
[1754585821841,1e-08,3821.8,3821.7,11.51552073]
[1754585822073,1e-08,3821.8,3821.7,12.06552073]
[1754585822275,0.536,3823.7,3823.6,2.61533633]
[1754585824058,0.536,3823.7,3823.2,2.61556922]
[1754585824377,0.536,3823.6,3823.5,2.61540473]
[1754585824996,0.536,3823.6,3823.1,4.74132]
[1754585825340,0.536,3823.6,3823.5,2.61540473]
[1754585825586,0.536,3823.6,3823.4,2.61546625]
[1754585825894,0.4316,3824.1,3823.1,3.08799212]
[1754585826085,0.536,3823.5,3822.1,0.9942]
[1754585826290,0.9676,3823.5,3823.2,2.61555499]
[1754585826518,2.61515042,3823.9,3823.2,2.61555499]
[1754585826519,0.536,3823.9,3823.2,0.4542]
[1754585826726,3.0,3824.5,3823.2,0.4542]
[1754585827036,0.536,3824.4,3823.8,0.1304]
[1754585827236,0.536,3824.4,3823.3,7.42248715]
[1754585827237,0.536,3824.4,3823.9,2.61513114]
[1754585827532,0.536,3824.4,3824.3,0.1304]
[1754585827984,2.61491108,3824.3,3823.6,2.61533428]
[1754585828182,0.9676,3824.2,3823.6,2.61527876]
[1754585828486,4.266,3824.3,3824.1,0.1304]
[1754585828707,4.266,3824.3,3823.1,3.01952266]
[1754585828708,0.9676,3824.2,3823.1,2.61567837]
[1754585828981,0.9676,3824.2,3822.7,0.4542]
[1754585828982,3.58264948,3824.1,3823.9,0.1304]
[1754585829215,0.536,3824.1,3823.9,2.61508687]
[1754585829417,0.536,3824.0,3823.6,2.61528908]
[1754585829608,4.265,3824.3,3823.6,2.61528908]
[1754585829609,7.3114803,3824.3,3823.6,2.61528908]
[1754585829806,0.536,3823.9,3823.4,2.6154525]
[1754585830018,7.3114803,3824.3,3823.4,2.61542419]
[1754585830019,2.61497612,3824.2,3823.4,2.61542419]
[1754585830235,0.536,3823.8,3823.5,2.61539785]
[1754585830540,2.61512889,3824.0,3823.9,0.1304]
[1754585830693,3.04687781,3823.7,3823.3,0.1304]
[1754585830888,0.4316,3823.7,3823.3,0.1304]
[1754585831115,0.9676,3823.6,3823.3,0.1304]
[1754585831421,4.8,3823.5,3823.3,0.1304]
[1754585831586,3.61576654,3823.4,3823.3,0.1304]
[1754585831786,3.61576654,3823.4,3822.3,0.4542]
[1754585831787,2.61564361,3823.2,3823.0,0.1304]
[1754585832009,0.536,3823.3,3823.0,0.1304]
[1754585832322,0.536,3823.3,3822.2,3.61043354]
[1754585832323,0.4316,3823.7,3823.2,0.1304]
[1754585832536,4.263,3823.6,3823.5,0.1304]
[1754585832747,5.7806,3823.6,3823.5,0.1304]
[1754585833030,0.9676,3823.6,3822.4,0.4542]
[1754585833348,3.15142524,3823.5,3823.2,0.1304]
[1754585833629,0.9676,3823.5,3823.2,0.1304]
[1754585833839,0.4316,3823.5,3823.2,0.1304]
[1754585834018,0.1304,3823.7,3823.2,0.1304]
[1754585834019,0.536,3823.4,3823.2,0.1304]
[1754585834229,2.61657164,3824.8,3823.6,2.61531813]